Cogmind - Beta 17 @@@ ROGUE MODE // 2026.08.12 @ 02:06:44 Player: alice_fexa Result: Destroyed by 6B-KNP(R) with Subdweller Laser Performance ------------- Evolutions (0) 0 Regions Visited (3) 600 Robots Destroyed (49) 245 Value Destroyed (1212) 1212 Prototype IDs (15) 300 Alien Tech Used (0) 0 Bonus (0) 0 TOTAL SCORE: 2357 Bonus ------- None Cogmind --------- Core Integrity 0/250 Matter 290/300 Energy 199/200 System Corruption 0% Temperature Cool (6) Movement Rolling (150) Ox4 Location -10/Subcaves Parts ------- > --- POWER (1) -------- Subdweller Power Source > --- PROPULSION (2) --- Spiked Treads Armored Wheel > --- UTILITY (2) ------ High-capacity Storage Unit Seismic Detector > --- WEAPON (2) ------- Subdweller Laser Subdweller Beam Cannon > --- INVENTORY (20) --- Light Treads Arachnoskeleton Subdweller Monowheel Improved Heat Sink Medium Matter Pod (100) V3-11A's Pendant Riot Gun Subdweller Beam Cannon Heavy Assault Rifle Heavy Assault Rifle Barrage Gun Barrage Gun Battle Cannon Rocket Launcher Rocket Launcher Multitool Makeshift Sword Makeshift Spear Peak State ------------ > --- POWER ------------ Subdweller Power Source > --- PROPULSION ------- Spiked Treads Armored Wheel > --- UTILITY ---------- High-capacity Storage Unit V3-11A's Pendant > --- WEAPON ----------- Subdweller Laser Subdweller Beam Cannon > --- INVENTORY -------- Light Treads Arachnoskeleton Subdweller Monowheel Improved Heat Sink Medium Matter Pod Seismic Detector Riot Gun Subdweller Beam Cannon Heavy Assault Rifle Heavy Assault Rifle Barrage Gun Barrage Gun Battle Cannon Rocket Launcher Rocket Launcher Multitool Makeshift Sword Makeshift Spear [Rating: 20] Favorites ----------- Power Subdweller Power Source Engine Subdweller Power Source Power Core Light Nuclear Core Propulsion Armored Wheel Treads Light Treads Wheel Armored Wheel Utility High-capacity Storage Unit Device Heat Sink Storage High-capacity Storage Unit Weapon Heavy Assault Rifle Energy Gun Subdweller Laser Energy Cannon Subdweller Beam Cannon Ballistic Gun Heavy Assault Rifle Launcher Grenade Launcher Build | -11 -10 -10 -10 ------- Run | Yrd Mat Min Sub Slots Evolved . | . . . . Power . | . . . . Propulsion . | . . . . Utility . | . . . . Weapon . | . . . . Parts Attached 41 | 7 20 1 13 Power 10 | 1 4 1 4 Engine 9 | 1 4 . 4 Core 1 | . . 1 . Reactor . | . . . . Propulsion 10 | 2 6 . 2 Treads 5 | 2 2 . 1 Leg . | . . . . Wheel 5 | . 4 . 1 Hover . | . . . . Flight . | . . . . Utility 9 | 2 4 . 3 Device 7 | 1 3 . 3 Storage 2 | 1 1 . . Processor . | . . . . Hackware . | . . . . Protection . | . . . . Artifact . | . . . . Weapon 12 | 2 6 . 4 Energy Gun 4 | . 2 . 2 Energy Cannon 2 | . 1 . 1 Ballistic Gun 5 | 2 2 . 1 Ballistic Cannon . | . . . . Launcher 1 | . 1 . . Special Weapon . | . . . . Impact Weapon . | . . . . Slashing Weapon . | . . . . Piercing Weapon . | . . . . Special Melee Weapon . | . . . . Unidentified Prototypes 1 | . . . 1 Parts Lost 3 | . . . 3 Power 2 | . . . 2 Propulsion 1 | . . . 1 Utility . | . . . . Weapon . | . . . . Highest Loss Streak 2 | . . . 2 To Critical Strikes . | . . . . Average Backups 18 | 2 18 20 19 Power 1 | . 1 1 . Propulsion 5 | 1 5 7 5 Utility 4 | . 4 4 3 Weapon 7 | . 7 7 8 Tool/Special . | . . . . Unused Backups 36 | . 9 2 25 Power . | . . . . Propulsion 11 | . 1 1 9 Utility 6 | . 3 1 2 Weapon 18 | . 5 . 13 Tool/Special 1 | . . . 1 Average Slot Usage (%) 99 | . 99 100 99 Engine 12 | . 14 5 13 Core 1 | . . 8 . Treads 14 | . 14 14 14 Wheel 13 | . 12 14 13 Device 13 | . 13 14 14 Storage 14 | . 14 14 14 Energy Gun 10 | . 11 . 12 Energy Cannon 6 | . 5 . 10 Ballistic Gun 11 | . 10 28 4 Peak Build Rating 20 | 7 15 17 20 Average Rating 14 | 5 10 16 16 On Entrance 9 | . 7 15 17 Avg Prop Armor Cover (%) 13 | . 11 11 15 Naked Turns . | . . . . Heaviest Build 58 | 12 52 52 58 Greatest Support 40 | 40 40 12 12 Greatest Overweight (x) 5 | . 5 4 4 Average Overweight (x) 3 | . 3 4 3 Largest Inventory Capacity 20 | 8 20 20 20 Average Capacity 19 | 7 19 20 20 Most Carried 20 | 4 20 20 20 Average Carried 19 | 2 18 19 19 Final Capacity 20 | 8 20 20 20 Final Carried 20 | 4 20 20 20 Class Distribution -------------------- 95% | Mutant 4% | Scavenger-Mutant Dominant Class ---------------- Mutant | -10/Materials Mutant | -10/Mines Mutant | -10/Subcaves Resources | -11 -10 -10 -10 ----------- Run | Yrd Mat Min Sub Matter Collected 1267 | 286 367 245 369 Remotely 186 | 186 . . . Salvage Created 1817 | 116 1074 179 448 Parts 107 | 4 61 13 29 Haulers Intercepted 2 | . 2 . . Recyclers Shooed 1 | 1 . . . Parts Field Recycled . | . . . . Retrieved Matter . | . . . . Parts Self-Destructed 3 | . . . 3 Prevented . | . . . . Parts Restored . | . . . . Kills | -11 -10 -10 -10 ------- Run | Yrd Mat Min Sub Combat Hostiles Destroyed 33 | . 18 5 10 Guns 27 | . 13 5 9 Cannons 3 | . 2 . 1 AOE 2 | . 2 . . Classes Destroyed 12 | 2 7 . 3 Worker 3 | . 2 1 . Tunneler 3 | 1 1 1 . Hauler 2 | . 2 . . Recycler 3 | 1 2 . . Mechanic 1 | . 1 . . Operator 2 | . 2 . . Watcher 2 | . 2 . . Swarmer 6 | . 3 3 . Grunt 18 | . 15 2 1 Sentry 1 | . . . 1 Artisan 1 | . . . 1 Subdweller 8 | . . . 8 Best Kill Streak 4 | 2 4 3 2 Combat Bots Only 3 | . 3 3 2 Max Kills in Single Turn 2 | 1 2 1 1 Gunslinging . | . . . . Exploded 2 | . 2 . . Melee . | . . . . Uniques/NPCs Destroyed . | . . . . Combat | -11 -10 -10 -10 -------- Run | Yrd Mat Min Sub Hostile Shots Fired 134 | . 56 24 54 Missed 38 | . 17 4 17 Hits 96 | . 39 20 37 Projectile 96 | . 39 20 37 Damage Taken 1407 | . 454 205 748 Core 264 | . 81 38 145 Absorbed by Shields . | . . . . Regen/Repaired (Parts) 98 | . 98 . . Core Remaining (%) 100 | 100 . . . Volleys Fired 147 | 4 75 19 49 Largest 2 | 2 2 2 2 Hottest 140 | 40 125 46 140 Shots Fired 276 | 8 148 38 82 Gun 237 | 8 111 38 80 Cannon 38 | . 36 . 2 Launcher 1 | . 1 . . Special . | . . . . Kinetic 129 | 8 36 38 47 Thermal 142 | . 111 . 31 Explosive 1 | . 1 . . Electromagnetic 4 | . . . 4 Robot Hit Streak 24 | 6 8 8 24 Robot Miss Streak 6 | 1 6 3 3 Penetration Max . | . . . . Secondary Targets . | . . . . Shots Hit Robots 175 | 6 88 25 56 Core Hits 72 | 3 40 9 20 Critical Kills . | . . . . Critical Parts Destroyed 1 | 1 . . . Critical Strikes 4 | 1 2 . 1 Burn 2 | . 2 . . Destroy 2 | 1 . . 1 Melee Attacks . | . . . . Impact . | . . . . Slashing . | . . . . Piercing . | . . . . Sneak Attacks . | . . . . Combat Hostiles . | . . . . Follow-up Attacks . | . . . . Damage Inflicted 2905 | 60 1421 376 1048 Guns 2348 | 60 923 376 989 Cannons 458 | . 399 . 59 Explosions 99 | . 99 . . Melee . | . . . . Ramming . | . . . . Kinetic 1455 | 60 316 376 703 Thermal 1292 | . 1006 . 286 Explosive 99 | . 99 . . Electromagnetic 59 | . . . 59 Impact . | . . . . Slashing . | . . . . Piercing . | . . . . Highest Corruption . | . . . . Average Corruption . | . . . . Corruption Purged . | . . . . Corruption Blocked . | . . . . Overload Shots . | . . . . Overflow Damage . | . . . . Projectiles . | . . . . Explosions . | . . . . Melee . | . . . . Knockbacks . | . . . . Impact . | . . . . Kinetic . | . . . . Secondary . | . . . . Self-Inflicted Damage . | . . . . Shots . | . . . . Rammed . | . . . . Targets Rammed . | . . . . Kicked . | . . . . Crushed . | . . . . Highest Temperature 261 | . 261 . . Average Temperature 71 | . 71 . . Received Heat Transfer 432 | . 210 72 150 Siege Activations . | . . . . Martial Activations . | . . . . Shielding Activations . | . . . . Robots Disrupted . | . . . . Combat Hostiles . | . . . . Robots Corrupted . | . . . . Combat Hostiles . | . . . . Parts Fried . | . . . . Impact Corruptions . | . . . . Robots Melted 1 | . 1 . . Combat Hostiles 1 | . 1 . . Parts Melted 3 | . 3 . . Heat Transferred 2746 | . 2397 . 349 Parts Sabotaged . | . . . . Parts Stolen . | . . . . Parts Stripped . | . . . . Power Chain Reactions . | . . . . Alert | -11 -10 -10 -10 ------- Run | Yrd Mat Min Sub Maximum Alert Level . | . . . . Low Security (%) 100 | 100 100 100 . Level 1 . | . . . . Level 2 . | . . . . Level 3 . | . . . . Level 4 . | . . . . Level 5 . | . . . . High Security . | . . . . Max Security . | . . . . Peak Influence 114 | 5 114 100 . Initial 14 | . . 14 . Average 33 | 1 41 18 . Influence Increases 755 | 10 545 160 40 Destroy 0b10 Robot/C 500 | . 360 100 40 Destroy 0b10 Robot/NC 80 | 10 60 10 . Destroy Leader 98 | . 78 20 . Successful Hack 21 | . 21 . . Destroy Structure 11 | . 11 . . Lose Combat Pursuer 45 | . 15 30 . Influence Decreases 755 | 10 507 198 40 Entered New Map 24 | . . 24 . Time Decay 721 | 10 507 174 30 Lost Part 10 | . . . 10 Squads Dispatched 3 | . 3 . . Investigation 1 | . 1 . . Extermination . | . . . . Reinforcement 2 | . 2 . . Assault . | . . . . Garrison . | . . . . Intercept . | . . . . Searches Triggered . | . . . . Construction Impeded . | . . . . Haulers Reinforced . | . . . . Active Scanning Responses . | . . . . Cargo Convoy Interrupts . | . . . . Stealth | -11 -10 -10 -10 --------- Run | Yrd Mat Min Sub Distress Signals 1 | . 1 . . Communications Jammed . | . . . . Distress Signals . | . . . . Times Spotted 51 | . 27 7 17 Peak Tracking Total 3 | . 3 3 2 Tactical Retreats 2 | . 1 1 . Traps | -11 -10 -10 -10 ------- Run | Yrd Mat Min Sub Traps Triggered 2 | . 1 . 1 Indirectly . | . . . . Trap Hack Attempts . | . . . . Triggered . | . . . . Disarmed . | . . . . Reprogrammed . | . . . . Reused . | . . . . Traps Extracted . | . . . . Installed . | . . . . Triggered . | . . . . Machines | -11 -10 -10 -10 ---------- Run | Yrd Mat Min Sub Machines Disabled 1 | . . . 1 Max in Single Turn 1 | . . . 1 Machines Repaired . | . . . . Machines Dismantled . | . . . . Machines Sabotaged . | . . . . Overloaded Fab Kills . | . . . . Hacking | -11 -10 -10 -10 --------- Run | Yrd Mat Min Sub Machines Accessed 10 | . 9 . 1 Terminals 6 | . 6 . . Fabricators . | . . . . Repair Stations 1 | . 1 . . Recycling Units 2 | . 2 . . Scanalyzers . | . . . . Garrison Access . | . . . . Total Hacks 25 | . 24 . 1 Successful 15 | . 14 . 1 Failed 10 | . 10 . . Catastrophic . | . . . . Database Lockouts . | . . . . Manual 13 | . 13 . . Terminals 15 | . 15 . . Fabricators . | . . . . Repair Stations 5 | . 5 . . Recycling Units 4 | . 4 . . Scanalyzers . | . . . . Garrison Access . | . . . . Terminal Hacks 3 | . 2 . 1 Locate Traps 2 | . 2 . . Proto ID Catalog 1 | . . . 1 Fabricator Hacks . | . . . . Repair Station Hacks 4 | . 4 . . Scan Component 2 | . 2 . . Repair 2 | . 2 . . Recycling Unit Hacks 2 | . 2 . . Retrieve Components 2 | . 2 . . Scanalyzer . | . . . . Garrison Access Hacks . | . . . . Unauthorized Hacks 6 | . 6 . . Terminals 6 | . 6 . . Botnet 1 | . 1 . . Skim 5 | . 5 . . Fabricators . | . . . . Repair Stations . | . . . . Recycling Units . | . . . . Scanalyzers . | . . . . Garrison Access . | . . . . Data Cores Recovered . | . . . . Used . | . . . . Hacking Detections 5 | . 5 . . Full Trace Events 1 | . 1 . . Feedback Events . | . . . . Feedback Blocked . | . . . . Robot Schematics Acquired . | . . . . Robots Built . | . . . . Authchips . | . . . . Time . | . . . . Total Robot Build Rating . | . . . . Part Schematics Acquired . | . . . . Parts Built . | . . . . Authchips . | . . . . Time . | . . . . Total Part Build Rating . | . . . . Part Studies Acquired . | . . . . Parts Repaired 2 | . 2 . . Time 58 | . 58 . . Parts Recycled . | . . . . Recycled Matter . | . . . . Retrieved Matter . | . . . . Retrieved Components 3 | . 3 . . Parts Scanalyzed . | . . . . Part Schematics Acquired . | . . . . Parts Damaged . | . . . . Bothacking | -11 -10 -10 -10 ------------ Run | Yrd Mat Min Sub Used RIF Installer . | . . . . Robots Hacked . | . . . . Non-combat . | . . . . Combat . | . . . . Robot Hacks Applied . | . . . . Relay Couplers Released . | . . . . Fabnet Peak Effective % . | . . . . Robots Rewired . | . . . . Allies Hacked . | . . . . Hacks Repelled . | . . . . Allies | -11 -10 -10 -10 -------- Run | Yrd Mat Min Sub Total Allies 7 | . . . 7 Largest Group 4 | . . . 4 Highest-Rated Group 76 | . . . 76 Highest-Rated Ally 19 | . . . 19 Total Orders . | . . . . Ally Attacks 6 | . . . 6 Total Damage 37 | . . . 37 Kills . | . . . . Allies Corrupted . | . . . . Allies Melted . | . . . . Intel | -11 -10 -10 -10 ------- Run | Yrd Mat Min Sub Active Infowar (turns) 897 | . . . 897 Seismic 897 | . . . 897 Robot Analysis Total . | . . . . Derelict Logs Recovered 4 | . . 1 3 Drone Launches . | . . . . Drone Recoveries . | . . . . Exploration | -11 -10 -10 -10 ------------- Run | Yrd Mat Min Sub Turns Passed 5006 | 90 1944 859 2113 Spaces Moved 2680 | 47 1030 512 1091 Core 11 | 11 . . . Treads 97 | 36 61 . . Legs . | . . . . Wheels 2572 | . 969 512 1091 Hover . | . . . . Flight . | . . . . Fastest Speed 50 | 50 140 150 135 Average Speed 148 | 134 147 150 149 Slowest Speed 240 | 160 240 150 150 Overloaded Moves . | . . . . Propulsion Burnouts . | . . . . Robots Hopped . | . . . . Potential Cave-ins . | . . . . Cave-ins Triggered . | . . . . Exploration Rate (%) 65 | 3 92 91 75 Regions Visited 3 Branch Regions 2 Pre-discovered Areas 4 | . 1 2 1 Known Exits Taken . | . . . . Unknown Exits Taken 3 | 1 1 1 . Scrap Searched 12 | . . 1 11 Spaces Dug 1 | . . . 1 Terrain Destroyed 7 | . 6 . 1 Melee . | . . . . Projectile 1 | . . . 1 AOE 6 | . 6 . . Terrain Rammed . | . . . . Walls Destroyed . | . . . . Machines Disabled . | . . . . Actions | -11 -10 -10 -10 --------- Run | Yrd Mat Min Sub Total 3454 | 63 1328 569 1494 Wait 450 | 2 131 33 284 Move 2677 | 46 1029 511 1091 Hop . | . . . . Pick Up 58 | 4 34 2 18 Fast Attach 18 | 7 6 . 5 Attach 3 | . . . 3 Detach 1 | . 1 . . Swap 38 | . 18 1 19 Drop 62 | . 34 3 25 Fire 147 | 4 75 19 49 Melee . | . . . . Ram . | . . . . Kick . | . . . . Crush . | . . . . Escape Stasis . | . . . . Rewire . | . . . . Trap . | . . . . Miscellaneous . | . . . . Route ------- -11/Scrapyard -10/Materials (discovered 5 exits: [*Mat x3] / [*Min] / *Sub) -10/Mines (discovered 2 exits: [*Mat] / *Sub) -10/Subcaves (discovered 1 exit: [*Mat]) History --------- Turn | Location | Event 7 | -11/Scrapyard | Discovered new exit (range 16) 91 | -11/Scrapyard | Entered Materials 310 | -10/Materials | Build established: Mutant 570 | -10/Materials | Discovered new exit (range 5) 840 | -10/Materials | Discovered new exit (range 15) 1010 | -10/Materials | Repaired Particle Gun 1037 | -10/Materials | Repaired Lgt. Treads 1281 | -10/Materials | Discovered new exit (range 7) 1349 | -10/Materials | Discovered new exit (range 3) 1555 | -10/Materials | Learned 4 Recycling zone layouts 1593 | -10/Materials | Discovered new exit (range 12) 1786 | -10/Materials | Learned Materials stockpile data 1820 | -10/Materials | Learned location of Storage (-7) 1863 | -10/Materials | Loaded intel: 10 trap records 1916 | -10/Materials | Loaded intel: 8 terminal locations 2035 | -10/Materials | Entered Mines 2092 | -10/Mines | Met a Derelict bent on vengeance 2163 | -10/Mines | Found a Scrap Suit stashed away for nefarious purposes 2177 | -10/Mines | Discovered new exit (range 7) 2247 | -10/Mines | Deemed a non-threat by the Exiles lab entrance 2575 | -10/Mines | Discovered new exit (range 13) 2894 | -10/Mines | Entered Subcaves 2899 | -10/Subcaves | Learned Materials terminal intel 3020 | -10/Subcaves | Core integrity fell below 50% 3230 | -10/Subcaves | Discovered new exit (range 14) 3347 | -10/Subcaves | Disturbed a concealed Subdweller 3803 | -10/Subcaves | Visited triangular shrine 3827 | -10/Subcaves | Found Prototype Device 3827 | -10/Subcaves | Identified V3-11A's Pendant 3832 | -10/Subcaves | Befriended Subdweller 4022 | -10/Subcaves | Visited 4L-MR0's lab 4041 | -10/Subcaves | Found Arachnoskeleton 4115 | -10/Subcaves | Shifting Twisted Machinery released Mak. Sword 4116 | -10/Subcaves | Shifting Twisted Machinery released Mak. System Shield 4178 | -10/Subcaves | Shifting Twisted Machinery released Sub. Power Source 4235 | -10/Subcaves | Shifting Twisted Machinery released Slug Cannon 4292 | -10/Subcaves | Befriended Subdweller 4292 | -10/Subcaves | Befriended Subdweller 4349 | -10/Subcaves | Learned 2 Materials zone layouts 4471 | -10/Subcaves | Core integrity fell below 20% 4712 | -10/Subcaves | Ambushed by Subdwellers from Twisted Machinery 4717 | -10/Subcaves | Befriended Subdweller 4717 | -10/Subcaves | Befriended Subdweller 4840 | -10/Subcaves | Befriended Subdweller 4904 | -10/Subcaves | Disturbed a concealed Subdweller 4905 | -10/Subcaves | Befriended Subdweller 5007 | -10/Subcaves | Destroyed by 6B-KNP(R) with Subdweller Laser Last Messages --------------- 04840_ XL-YTP(R): "YEYEYEAH!" 04900_ Searching scrap... 04900_ Found Shrapnel Trap. 04900_ Found 58 Matter. 04901_ Acquired 10 matter. 04901_ Searching scrap... 04901_ Found Battle Cannon. 04901_ Found 41 Matter. 04903_ Searching scrap... 04903_ Found Riot Gun. 04903_ Found Flamer. 04903_ Found 59 Matter. 04904_ YB-L1Q(R) angrily emerges from the Twisted Machinery. 04904_ Searching scrap... 04904_ Found Mak. Spear. 04904_ Found Sub. Power Source. 04904_ Found 59 Matter. 04905_ YB-L1Q(R): "HEREWEGO!" 04909_ Dropped Sml. Storage Unit. 04909_ Acquired Mak. Spear. Map ----- +----------------------------------------------------+ | ???????????????????????????# #### #?????# #?# | | ???????????????????????????# ##??# #????# #?? | | ???????????????????????????# #??? #???## #?? | | ???????????????????????????# ??? ###????# #?? | | ???????????????????????????# ??? #??????# ##? | | ???????????????????????????# ??? ##?????## ## | | ???????????????????????????# ??####??##### | | ???????????????????????????## ???????## | | ????????????????????????????###??????## | | ???????????????????????????#########?# | | ??????????????????????###### # ### | | ?????????????????????## ## | | ????????????????###??# ### ## | | ????????????????# #### #### # # #?## ### | | ???????????????## ## ### ###### #??####?### | | ???????????????# # ## #???########?????????? | | ???????????????# # #?????????????????????? | | ??????????????## ## #?????????????????????? | | ?????????????## ## ##????????????????????? | | ?????????????# #????????????????????? | | ????????????## ! #????????????????????? | | ???????????## #????????????????????? | | ???????????# #????????????????????? | | ???????????# ## R R #????????????????????? | | ???????????# ######## ##???????????????????? | | ???????????# ######## @R #???????????????????? | | ???????????## ## #### #???????????????????? | | ????????#### R #???????????????????? | | ??????###"### #???????????????????? | | ????###" ## # #### ##??????????????????? | | ????#"/ ######## ##?????????????????? | | ????###" ## #### ##????????????????? | | ??????###"## ### #????????????????? | | ????????#######?# ###????????????????? | | ????????????????## ##??????????????????? | | ????????????????## R ##???????????????????? | | ????????????????# #????????????????????? | | ???????????????## #???????????????????? | | ??????????????## ## #?????????????????? | | ?????????????## ### ### ! ??????????????? | | ????????????## ###?###??# " "?????????????? | | ???????????## ##?????????" ##"#?????????????? | | ???????????# #??????????"###??#?????????????? | | ???????????# #??????????????????????????????? | | ???????????# ##??????????????????????????????? | | ???????????# "#???????????????????????????????? | | ???????????# "#???????????????????????????????? | | ???????????# ##???????????????????????????????? | | ??????????## ! ##????????????????????????????????? | | ??????????# ]&##?????????????????????????????????? | +----------------------------------------------------+ Best States ------------- Heat Dissipation 39 Energy Generation 15 Energy Capacity 250 Matter Stores 300 Matter Capacity 300 Sight Range 16 Terrain Scan Density 10 Evasion (%) 50 Recoil Reduction 2 Item Schematics ----------------- None Robot Schematics ------------------ None Fabricated ------------ Nothing Repaired ---------- Particle Gun | 72% | -10/Materials Lgt. Treads | 45% | -10/Materials Studied --------- None Alien Tech Used ----------------- None Achievements -------------- None Challenges ------------ None Game ------ Seed HugeProjectionImmobilizer Manual? 0 Play Time 00:20:03 Cumulative 1714.0 hours Start 2026.08.12 @ 01:49:42 End 2026.08.12 @ 02:06:44 Sessions 1 Manual Loads 0 Difficulty Rogue Special Mode None Game No. 1233 Rogue 1193 Adventurer 40 Explorer 0 Win Type - Total 227 Types 107/12/76/3/2/4/16/2/1/4 Lore% 98 Gallery% 98 Achievement% 91 Wizard Run 0 Options --------- Layout 0 ASCII 0 Keyboard 0 Movement Numpad Keybinds 0 Fullscreen 0 Font 20/Terminus Map View 76x50 Zoom Use 0% Tactical HUD 1 Map Filters NONE Filters NONE Steam 1 RUN: dc9113ca-1a8c-4442-a7c1-76ac03423902